[Event "Titled Tuesday Blitz July 25 Late 2023"]
[White "Ponizil, Cyril"]
[Black "Moore, Nicholas"]
[WhiteFideId "322202"]
[BlackFideId "4303709"]
[WhiteElo "2619"]
[BlackElo "2448"]
[Result "1-0"]
[Round "9"]
[TimeControl "180+2"]
[Date "2023.07.25"]
[WhiteClock "0:01:44"]
[BlackClock "0:00:32"]
[Board "63"]

1. e4 {[%clk 0:03:00]}  c5 {[%clk 0:02:59]} 2. Nf3 {[%clk 0:03:00]}  e6 {[%clk 0:02:55]} 3. d4 {[%clk 0:03:01]}  cxd4 {[%clk 0:02:56]} 4. Nxd4 {[%clk 0:03:01]}  Nc6 {[%clk 0:02:43]} 5. Nc3 {[%clk 0:03:01]}  Qc7 {[%clk 0:02:41]} 6. g3 {[%clk 0:03:02]}  a6 {[%clk 0:02:39]} 7. Bg2 {[%clk 0:03:02]}  Nf6 {[%clk 0:02:39]} 8. O-O {[%clk 0:03:02]}  Nxd4 {[%clk 0:02:39]} 9. Qxd4 {[%clk 0:03:02]}  Bc5 {[%clk 0:02:40]} 10. Bf4 {[%clk 0:03:03]}  d6 {[%clk 0:02:39]} 11. Qd2 {[%clk 0:02:59]}  h6 {[%clk 0:02:36]} 12. Rad1 {[%clk 0:02:59]}  e5 {[%clk 0:02:36]} 13. Be3 {[%clk 0:02:59]}  Be6 {[%clk 0:02:37]} 14. Bxc5 {[%clk 0:02:57]}  dxc5 {[%clk 0:02:38]} 15. Qd6 {[%clk 0:02:57]}  Qxd6 {[%clk 0:02:35]} 16. Rxd6 {[%clk 0:02:57]}  Ke7 {[%clk 0:02:36]} 17. Rfd1 {[%clk 0:02:56]}  Rhd8 {[%clk 0:02:16]} 18. Rb6 {[%clk 0:02:54]}  Rxd1+ {[%clk 0:02:15]} 19. Nxd1 {[%clk 0:02:55]}  Rb8 {[%clk 0:02:14]} 20. Ne3 {[%clk 0:02:20]}  Kd7 {[%clk 0:01:57]} 21. c4 {[%clk 0:02:15]}  Kc7 {[%clk 0:01:55]} 22. Rb3 {[%clk 0:02:15]}  Rd8 {[%clk 0:01:53]} 23. Nd5+ {[%clk 0:02:15]}  Bxd5 {[%clk 0:01:53]} 24. exd5 {[%clk 0:02:14]}  Ne8 {[%clk 0:01:53]} 25. Re3 {[%clk 0:02:13]}  f6 {[%clk 0:01:46]} 26. f4 {[%clk 0:02:13]}  Kd6 {[%clk 0:01:35]} 27. fxe5+ {[%clk 0:02:13]}  fxe5 {[%clk 0:01:35]} 28. Rb3 {[%clk 0:02:08]}  Kc7 {[%clk 0:01:31]} 29. Rf3 {[%clk 0:02:02]}  Nd6 {[%clk 0:01:24]} 30. b3 {[%clk 0:02:01]}  Re8 {[%clk 0:01:15]} 31. Bh3 {[%clk 0:01:57]}  Kb6 {[%clk 0:01:07]} 32. Be6 {[%clk 0:01:57]}  Ka5 {[%clk 0:01:06]} 33. a3 {[%clk 0:01:56]}  b5 {[%clk 0:01:06]} 34. Rc3 {[%clk 0:01:49]}  b4 {[%clk 0:00:56]} 35. axb4+ {[%clk 0:01:49]}  Kxb4 {[%clk 0:00:57]} 36. Re3 {[%clk 0:01:49]}  e4 {[%clk 0:00:57]} 37. g4 {[%clk 0:01:43]}  a5 {[%clk 0:00:57]} 38. Kf2 {[%clk 0:01:42]}  a4 {[%clk 0:00:57]} 39. bxa4 {[%clk 0:01:42]}  Kxa4 {[%clk 0:00:58]} 40. Bd7+ {[%clk 0:01:42]}  Kb4 {[%clk 0:00:53]} 41. Bxe8 {[%clk 0:01:43]}  Nxe8 {[%clk 0:00:53]} 42. Rxe4 {[%clk 0:01:43]}  Nd6 {[%clk 0:00:52]} 43. Re6 {[%clk 0:01:43]}  Nxc4 {[%clk 0:00:50]} 44. Re4 {[%clk 0:01:43]}  Kb5 {[%clk 0:00:48]} 45. Rxc4 {[%clk 0:01:43]}  Kxc4 {[%clk 0:00:32]} 46. d6 {[%clk 0:01:44]} 1-0


[Site "https://www.chess.com"]

[Event "Titled Tuesday Blitz July 25 Late 2023"]
[White "Pinheiro, Iung Alicio de O."]
[Black "Mickiewicz, Piotr"]
[WhiteFideId "2104350"]
[BlackFideId "1114891"]
[WhiteElo "2596"]
[BlackElo "2437"]
[Result "0-1"]
[Round "9"]
[TimeControl "180+2"]
[Date "2023.07.25"]
[WhiteClock "0:00:07"]
[BlackClock "0:00:12"]
[Board "66"]

1. e4 {[%clk 0:03:00]}  c5 {[%clk 0:02:58]} 2. Nf3 {[%clk 0:03:00]}  e6 {[%clk 0:02:58]} 3. d3 {[%clk 0:02:59]}  Nc6 {[%clk 0:02:56]} 4. g3 {[%clk 0:02:59]}  d5 {[%clk 0:02:51]} 5. Qe2 {[%clk 0:02:58]}  Nf6 {[%clk 0:02:49]} 6. Bg2 {[%clk 0:02:58]}  Be7 {[%clk 0:02:49]} 7. O-O {[%clk 0:02:56]}  O-O {[%clk 0:02:47]} 8. e5 {[%clk 0:02:57]}  Nd7 {[%clk 0:02:46]} 9. c4 {[%clk 0:02:58]}  d4 {[%clk 0:02:23]} 10. h4 {[%clk 0:02:52]}  h6 {[%clk 0:02:20]} 11. Bf4 {[%clk 0:02:38]}  Rb8 {[%clk 0:02:17]} 12. Re1 {[%clk 0:02:16]}  a6 {[%clk 0:02:17]} 13. Nbd2 {[%clk 0:02:15]}  b5 {[%clk 0:02:15]} 14. Nf1 {[%clk 0:01:53]}  Bb7 {[%clk 0:02:14]} 15. b3 {[%clk 0:01:45]}  bxc4 {[%clk 0:02:12]} 16. bxc4 {[%clk 0:01:45]}  Nb6 {[%clk 0:02:00]} 17. N1h2 {[%clk 0:01:44]}  Na4 {[%clk 0:02:00]} 18. h5 {[%clk 0:01:21]}  Nc3 {[%clk 0:01:59]} 19. Qd2 {[%clk 0:01:21]}  Kh7 {[%clk 0:01:57]} 20. Ng4 {[%clk 0:01:19]}  Rh8 {[%clk 0:01:41]} 21. Bxh6 {[%clk 0:00:34]}  gxh6 {[%clk 0:01:40]} 22. Qxh6+ {[%clk 0:00:35]}  Kg8 {[%clk 0:01:40]} 23. Qf4 {[%clk 0:00:35]}  Rxh5 {[%clk 0:01:20]} 24. Nf6+ {[%clk 0:00:35]}  Bxf6 {[%clk 0:01:20]} 25. exf6 {[%clk 0:00:36]}  Kf8 {[%clk 0:00:45]} 26. g4 {[%clk 0:00:30]}  Rh8 {[%clk 0:00:42]} 27. Ng5 {[%clk 0:00:26]}  Nb4 {[%clk 0:00:30]} 28. Rxe6 {[%clk 0:00:16]}  Nxd3 {[%clk 0:00:28]} 29. Qf5 {[%clk 0:00:16]}  Bxg2 {[%clk 0:00:25]} 30. Nxf7 {[%clk 0:00:15]}  Ba8 {[%clk 0:00:15]} 31. f3 {[%clk 0:00:11]}  Qc7 {[%clk 0:00:14]} 32. Nd6 {[%clk 0:00:09]}  Ne2+ {[%clk 0:00:14]} 33. Kg2 {[%clk 0:00:07]}  Nef4+ {[%clk 0:00:13]} 34. Kg3 {[%clk 0:00:07]}  Rh3# {[%clk 0:00:12]} 0-1


[Site "https://www.chess.com"]

[Event "Titled Tuesday Blitz July 25 Late 2023"]
[White "Hajiyev, Kanan"]
[Black "Arnold, Ken"]
[WhiteFideId "13404148"]
[BlackFideId "2056836"]
[WhiteElo "2574"]
[BlackElo "2433"]
[Result "1-0"]
[Round "9"]
[TimeControl "180+2"]
[Date "2023.07.25"]
[WhiteClock "0:00:20"]
[BlackClock "0:00:31"]
[Board "67"]

1. d4 {[%clk 0:02:28]}  d5 {[%clk 0:02:57]} 2. Nf3 {[%clk 0:02:29]}  Nf6 {[%clk 0:02:56]} 3. c4 {[%clk 0:02:29]}  c6 {[%clk 0:02:57]} 4. cxd5 {[%clk 0:02:30]}  Nxd5 {[%clk 0:02:56]} 5. e4 {[%clk 0:02:30]}  Nc7 {[%clk 0:02:56]} 6. Nc3 {[%clk 0:02:29]}  Bg4 {[%clk 0:02:55]} 7. Bc4 {[%clk 0:02:29]}  e6 {[%clk 0:02:55]} 8. Be3 {[%clk 0:02:23]}  Nd7 {[%clk 0:02:50]} 9. O-O {[%clk 0:02:22]}  Be7 {[%clk 0:02:50]} 10. a4 {[%clk 0:02:22]}  a5 {[%clk 0:02:49]} 11. Qb3 {[%clk 0:02:20]}  Qc8 {[%clk 0:02:39]} 12. Nd2 {[%clk 0:02:10]}  O-O {[%clk 0:02:34]} 13. f3 {[%clk 0:02:07]}  Bh5 {[%clk 0:02:34]} 14. Rac1 {[%clk 0:02:06]}  Bb4 {[%clk 0:02:13]} 15. Rfd1 {[%clk 0:02:05]}  Na6 {[%clk 0:02:08]} 16. Ne2 {[%clk 0:01:59]}  Nb6 {[%clk 0:01:57]} 17. Bd3 {[%clk 0:01:59]}  Rd8 {[%clk 0:01:49]} 18. Nf4 {[%clk 0:01:53]}  Bg6 {[%clk 0:01:49]} 19. h4 {[%clk 0:01:54]}  Bd6 {[%clk 0:01:29]} 20. Qxb6 {[%clk 0:01:26]}  Nb4 {[%clk 0:01:23]} 21. Nc4 {[%clk 0:01:01]}  Bc7 {[%clk 0:01:19]} 22. Qc5 {[%clk 0:01:01]}  Qb8 {[%clk 0:01:11]} 23. Nxg6 {[%clk 0:00:51]}  hxg6 {[%clk 0:01:08]} 24. Qg5 {[%clk 0:00:46]}  b5 {[%clk 0:01:03]} 25. axb5 {[%clk 0:00:45]}  cxb5 {[%clk 0:01:03]} 26. Na3 {[%clk 0:00:40]}  Nxd3 {[%clk 0:00:56]} 27. Rxd3 {[%clk 0:00:39]}  b4 {[%clk 0:00:55]} 28. Nc4 {[%clk 0:00:34]}  e5 {[%clk 0:00:54]} 29. d5 {[%clk 0:00:30]}  Bd6 {[%clk 0:00:45]} 30. Nxd6 {[%clk 0:00:26]}  Qxd6 {[%clk 0:00:44]} 31. Rc6 {[%clk 0:00:27]}  Qf8 {[%clk 0:00:40]} 32. h5 {[%clk 0:00:22]}  gxh5 {[%clk 0:00:39]} 33. Qxh5 {[%clk 0:00:23]}  a4 {[%clk 0:00:36]} 34. Bc5 {[%clk 0:00:23]}  Qe8 {[%clk 0:00:35]} 35. Bxb4 {[%clk 0:00:22]}  Qxc6 {[%clk 0:00:33]} 36. dxc6 {[%clk 0:00:22]}  Rxd3 {[%clk 0:00:34]} 37. Qxe5 {[%clk 0:00:20]}  Rd1+ {[%clk 0:00:33]} 38. Kh2 {[%clk 0:00:20]}  Rc1 {[%clk 0:00:32]} 39. Bc3 {[%clk 0:00:20]}  a3 {[%clk 0:00:31]} 40. Qxg7# {[%clk 0:00:20]} 1-0


[Site "https://www.chess.com"]

[Event "Titled Tuesday Blitz July 25 Late 2023"]
[White "Fiorito, Francisco"]
[Black "Herman, Daniel"]
[WhiteFideId "180165"]
[BlackFideId "30935008"]
[WhiteElo "2527"]
[BlackElo "2423"]
[Result "1-0"]
[Round "9"]
[TimeControl "180+2"]
[Date "2023.07.25"]
[WhiteClock "0:00:29"]
[BlackClock "0:00:00"]
[Board "70"]

1. Nf3 {[%clk 0:03:00]}  b6 {[%clk 0:02:58]} 2. c4 {[%clk 0:02:56]}  Bb7 {[%clk 0:02:58]} 3. g3 {[%clk 0:02:55]}  e5 {[%clk 0:02:57]} 4. Bg2 {[%clk 0:02:55]}  e4 {[%clk 0:02:49]} 5. Nd4 {[%clk 0:02:54]}  Qf6 {[%clk 0:02:32]} 6. e3 {[%clk 0:02:44]}  Bc5 {[%clk 0:02:24]} 7. Nb3 {[%clk 0:02:42]}  Na6 {[%clk 0:02:02]} 8. a3 {[%clk 0:02:36]}  Nh6 {[%clk 0:01:50]} 9. Nc3 {[%clk 0:02:33]}  Qg6 {[%clk 0:01:36]} 10. d4 {[%clk 0:02:24]}  Be7 {[%clk 0:01:26]} 11. Nd2 {[%clk 0:02:19]}  f5 {[%clk 0:01:23]} 12. b4 {[%clk 0:02:17]}  c5 {[%clk 0:01:19]} 13. b5 {[%clk 0:01:36]}  Nc7 {[%clk 0:01:18]} 14. dxc5 {[%clk 0:01:35]}  bxc5 {[%clk 0:01:12]} 15. Bb2 {[%clk 0:01:30]}  O-O {[%clk 0:01:09]} 16. Nb3 {[%clk 0:01:26]}  Rad8 {[%clk 0:01:05]} 17. O-O {[%clk 0:01:22]}  d5 {[%clk 0:00:58]} 18. cxd5 {[%clk 0:01:21]}  Nxd5 {[%clk 0:00:59]} 19. Nxd5 {[%clk 0:01:21]}  Bxd5 {[%clk 0:00:59]} 20. Qc2 {[%clk 0:01:20]}  c4 {[%clk 0:00:39]} 21. Na5 {[%clk 0:01:14]}  Rc8 {[%clk 0:00:38]} 22. Rfd1 {[%clk 0:01:10]}  Be6 {[%clk 0:00:37]} 23. Nc6 {[%clk 0:01:09]}  Bf6 {[%clk 0:00:35]} 24. Rd6 {[%clk 0:01:08]}  Qe8 {[%clk 0:00:23]} 25. Nxa7 {[%clk 0:01:01]}  Rd8 {[%clk 0:00:19]} 26. Rad1 {[%clk 0:00:57]}  Qe7 {[%clk 0:00:14]} 27. Nc6 {[%clk 0:00:55]}  Qxd6 {[%clk 0:00:07]} 28. Rxd6 {[%clk 0:00:50]}  Rxd6 {[%clk 0:00:08]} 29. Bxf6 {[%clk 0:00:50]}  Rxf6 {[%clk 0:00:09]} 30. Bf1 {[%clk 0:00:51]}  Bd7 {[%clk 0:00:06]} 31. Bxc4+ {[%clk 0:00:50]}  Kf8 {[%clk 0:00:07]} 32. Nd4 {[%clk 0:00:50]}  Ng4 {[%clk 0:00:06]} 33. a4 {[%clk 0:00:47]}  Ne5 {[%clk 0:00:05]} 34. Be2 {[%clk 0:00:48]}  f4 {[%clk 0:00:04]} 35. Qc5 {[%clk 0:00:41]}  f3 {[%clk 0:00:03]} 36. Bf1 {[%clk 0:00:37]}  Nd3 {[%clk 0:00:03]} 37. Qa3 {[%clk 0:00:32]}  Ke8 {[%clk 0:00:00]} 38. a5 {[%clk 0:00:29]} 1-0


[Site "https://www.chess.com"]

[Event "Titled Tuesday Blitz July 25 Late 2023"]
[White "Rakitic2010"]
[Black "Rottenwohrer Suarez, Juan"]
[BlackFideId "32068182"]
[WhiteElo "2420"]
[BlackElo "2525"]
[Result "1-0"]
[Round "9"]
[TimeControl "180+2"]
[Date "2023.07.25"]
[WhiteClock "0:01:28"]
[BlackClock "0:00:00"]
[Board "71"]

1. e4 {[%clk 0:02:57]}  e6 {[%clk 0:03:00]} 2. d4 {[%clk 0:02:55]}  d5 {[%clk 0:03:00]} 3. Nc3 {[%clk 0:02:56]}  Nf6 {[%clk 0:02:59]} 4. e5 {[%clk 0:02:56]}  Nfd7 {[%clk 0:02:58]} 5. f4 {[%clk 0:02:57]}  c5 {[%clk 0:02:57]} 6. Nf3 {[%clk 0:02:58]}  Nc6 {[%clk 0:02:57]} 7. Be3 {[%clk 0:02:58]}  cxd4 {[%clk 0:02:56]} 8. Nxd4 {[%clk 0:02:56]}  Qb6 {[%clk 0:02:56]} 9. Qd2 {[%clk 0:02:54]}  Qxb2 {[%clk 0:02:54]} 10. Rb1 {[%clk 0:02:54]}  Qa3 {[%clk 0:02:54]} 11. Bb5 {[%clk 0:02:54]}  Nxd4 {[%clk 0:02:39]} 12. Bxd4 {[%clk 0:02:54]}  a6 {[%clk 0:02:38]} 13. Bxd7+ {[%clk 0:02:53]}  Bxd7 {[%clk 0:02:37]} 14. Rxb7 {[%clk 0:02:51]}  Qe7 {[%clk 0:02:00]} 15. O-O {[%clk 0:02:49]}  Qd8 {[%clk 0:01:57]} 16. Rfb1 {[%clk 0:02:44]}  Qc8 {[%clk 0:01:42]} 17. Kh1 {[%clk 0:02:16]}  Be7 {[%clk 0:01:37]} 18. Na4 {[%clk 0:01:44]}  Bxa4 {[%clk 0:01:22]} 19. Rxe7+ {[%clk 0:01:45]}  Kxe7 {[%clk 0:00:55]} 20. Qb4+ {[%clk 0:01:45]}  Ke8 {[%clk 0:00:53]} 21. Qxa4+ {[%clk 0:01:45]}  Qd7 {[%clk 0:00:51]} 22. Qa5 {[%clk 0:01:45]}  g6 {[%clk 0:00:29]} 23. Bc5 {[%clk 0:01:43]}  h6 {[%clk 0:00:19]} 24. Rb6 {[%clk 0:01:37]}  g5 {[%clk 0:00:13]} 25. Qb4 {[%clk 0:01:34]}  gxf4 {[%clk 0:00:03]} 26. Rb7 {[%clk 0:01:32]}  Qc8 {[%clk 0:00:01]} 27. Re7+ {[%clk 0:01:30]}  Kd8 {[%clk 0:00:00]} 28. Qb6+ {[%clk 0:01:28]} 1-0


[Site "https://www.chess.com"]

[Event "Titled Tuesday Blitz July 25 Late 2023"]
[White "Bilan, Danila"]
[Black "Nunez V, Gustavo Eduardo"]
[WhiteFideId "24161918"]
[BlackFideId "4403690"]
[WhiteElo "2522"]
[BlackElo "2420"]
[Result "1/2-1/2"]
[Round "9"]
[TimeControl "180+2"]
[Date "2023.07.25"]
[WhiteClock "0:00:03"]
[BlackClock "0:00:19"]
[Board "72"]

1. d4 {[%clk 0:03:00]}  c5 {[%clk 0:02:59]} 2. e3 {[%clk 0:03:00]}  cxd4 {[%clk 0:02:57]} 3. exd4 {[%clk 0:03:00]}  Nf6 {[%clk 0:02:57]} 4. Nf3 {[%clk 0:03:00]}  g6 {[%clk 0:02:57]} 5. Bg5 {[%clk 0:02:57]}  Bg7 {[%clk 0:02:58]} 6. c3 {[%clk 0:02:57]}  h6 {[%clk 0:02:58]} 7. Bh4 {[%clk 0:02:57]}  O-O {[%clk 0:02:58]} 8. Nbd2 {[%clk 0:02:57]}  d6 {[%clk 0:02:54]} 9. Bc4 {[%clk 0:02:55]}  e5 {[%clk 0:02:53]} 10. dxe5 {[%clk 0:02:49]}  dxe5 {[%clk 0:02:54]} 11. O-O {[%clk 0:02:50]}  Nc6 {[%clk 0:02:53]} 12. Re1 {[%clk 0:02:28]}  Qc7 {[%clk 0:02:31]} 13. Qe2 {[%clk 0:02:12]}  Re8 {[%clk 0:01:49]} 14. h3 {[%clk 0:01:47]}  Be6 {[%clk 0:01:25]} 15. Rad1 {[%clk 0:01:29]}  Nd7 {[%clk 0:01:03]} 16. Bg3 {[%clk 0:01:24]}  Nb6 {[%clk 0:00:59]} 17. Bxe6 {[%clk 0:01:20]}  Rxe6 {[%clk 0:01:00]} 18. Ne4 {[%clk 0:01:20]}  f5 {[%clk 0:00:55]} 19. Nc5 {[%clk 0:01:19]}  Re7 {[%clk 0:00:55]} 20. Nd2 {[%clk 0:01:08]}  Rae8 {[%clk 0:00:29]} 21. f3 {[%clk 0:00:45]}  Kh7 {[%clk 0:00:27]} 22. Nc4 {[%clk 0:00:32]}  Nxc4 {[%clk 0:00:22]} 23. Qxc4 {[%clk 0:00:33]}  Na5 {[%clk 0:00:22]} 24. Qb5 {[%clk 0:00:28]}  b6 {[%clk 0:00:22]} 25. Nd3 {[%clk 0:00:21]}  Qc4 {[%clk 0:00:16]} 26. Qxc4 {[%clk 0:00:16]}  Nxc4 {[%clk 0:00:17]} 27. b3 {[%clk 0:00:15]}  e4 {[%clk 0:00:17]} 28. fxe4 {[%clk 0:00:07]}  fxe4 {[%clk 0:00:18]} 29. Nf4 {[%clk 0:00:07]}  Nb2 {[%clk 0:00:15]} 30. Rb1 {[%clk 0:00:07]}  Bxc3 {[%clk 0:00:15]} 31. Re3 {[%clk 0:00:06]}  Bd4 {[%clk 0:00:14]} 32. Bf2 {[%clk 0:00:06]}  Bxe3 {[%clk 0:00:14]} 33. Bxe3 {[%clk 0:00:07]}  Nd3 {[%clk 0:00:14]} 34. Nd5 {[%clk 0:00:08]}  Rf7 {[%clk 0:00:14]} 35. Bd4 {[%clk 0:00:08]}  Ref8 {[%clk 0:00:14]} 36. Kh2 {[%clk 0:00:07]}  g5 {[%clk 0:00:14]} 37. Nc3 {[%clk 0:00:06]}  Re8 {[%clk 0:00:12]} 38. Nd5 {[%clk 0:00:06]}  Kg6 {[%clk 0:00:12]} 39. Be3 {[%clk 0:00:06]}  Nf4 {[%clk 0:00:12]} 40. Nc3 {[%clk 0:00:06]}  Rc8 {[%clk 0:00:11]} 41. Nxe4 {[%clk 0:00:05]}  Re7 {[%clk 0:00:12]} 42. Bxf4 {[%clk 0:00:05]}  Rxe4 {[%clk 0:00:11]} 43. Bg3 {[%clk 0:00:03]}  Rc2 {[%clk 0:00:12]} 44. Rg1 {[%clk 0:00:03]}  Ree2 {[%clk 0:00:12]} 45. a3 {[%clk 0:00:02]}  Rb2 {[%clk 0:00:13]} 46. b4 {[%clk 0:00:02]}  Ra2 {[%clk 0:00:13]} 47. b5 {[%clk 0:00:01]}  Rxa3 {[%clk 0:00:13]} 48. Bb8 {[%clk 0:00:02]}  Raa2 {[%clk 0:00:14]} 49. Kg3 {[%clk 0:00:02]}  h5 {[%clk 0:00:14]} 50. Kh2 {[%clk 0:00:02]}  h4 {[%clk 0:00:14]} 51. Bc7 {[%clk 0:00:03]}  Rab2 {[%clk 0:00:14]} 52. Bd6 {[%clk 0:00:04]}  Rxb5 {[%clk 0:00:15]} 53. Rd1 {[%clk 0:00:04]}  Rbb2 {[%clk 0:00:15]} 54. Bb8 {[%clk 0:00:04]}  Rxg2+ {[%clk 0:00:14]} 55. Kh1 {[%clk 0:00:05]}  Rgd2 {[%clk 0:00:14]} 56. Rc1 {[%clk 0:00:05]}  a5 {[%clk 0:00:15]} 57. Be5 {[%clk 0:00:03]}  Rbc2 {[%clk 0:00:14]} 58. Rb1 {[%clk 0:00:04]}  Kf5 {[%clk 0:00:13]} 59. Bb8 {[%clk 0:00:04]}  Rb2 {[%clk 0:00:13]} 60. Rf1+ {[%clk 0:00:04]}  Rf2 {[%clk 0:00:14]} 61. Rc1 {[%clk 0:00:04]}  b5 {[%clk 0:00:14]} 62. Ba7 {[%clk 0:00:02]}  Rh2+ {[%clk 0:00:13]} 63. Kg1 {[%clk 0:00:02]}  Rbg2+ {[%clk 0:00:13]} 64. Kf1 {[%clk 0:00:03]}  Rh1+ {[%clk 0:00:14]} 65. Kxg2 {[%clk 0:00:04]}  Rxc1 {[%clk 0:00:15]} 66. Bb6 {[%clk 0:00:03]}  Rc2+ {[%clk 0:00:16]} 67. Kh1 {[%clk 0:00:03]}  a4 {[%clk 0:00:17]} 68. Ba5 {[%clk 0:00:03]}  a3 {[%clk 0:00:17]} 69. Bb6 {[%clk 0:00:02]}  a2 {[%clk 0:00:18]} 70. Bg1 {[%clk 0:00:02]}  b4 {[%clk 0:00:19]} 71. Be3 {[%clk 0:00:02]}  b3 {[%clk 0:00:19]} 72. Bg1 {[%clk 0:00:03]}  a1=Q {[%clk 0:00:19]} 1/2-1/2


[Site "https://www.chess.com"]

[Event "Titled Tuesday Blitz July 25 Late 2023"]
[White "Ai, Evan"]
[Black "Gasparyan, David"]
[WhiteFideId "2094770"]
[BlackFideId "13311980"]
[WhiteElo "2413"]
[BlackElo "2519"]
[Result "0-1"]
[Round "9"]
[TimeControl "180+2"]
[Date "2023.07.25"]
[WhiteClock "0:00:04"]
[BlackClock "0:00:26"]
[Board "73"]

1. e4 {[%clk 0:02:53]}  c5 {[%clk 0:02:58]} 2. Nf3 {[%clk 0:02:53]}  e6 {[%clk 0:02:58]} 3. d4 {[%clk 0:02:53]}  cxd4 {[%clk 0:02:59]} 4. Nxd4 {[%clk 0:02:53]}  Nc6 {[%clk 0:02:59]} 5. Nc3 {[%clk 0:02:54]}  Qc7 {[%clk 0:02:58]} 6. a3 {[%clk 0:02:51]}  a6 {[%clk 0:02:55]} 7. Be3 {[%clk 0:02:51]}  Nf6 {[%clk 0:02:55]} 8. Be2 {[%clk 0:02:48]}  Be7 {[%clk 0:02:47]} 9. O-O {[%clk 0:02:45]}  O-O {[%clk 0:02:44]} 10. f4 {[%clk 0:02:42]}  d6 {[%clk 0:02:41]} 11. Qd2 {[%clk 0:02:33]}  Rd8 {[%clk 0:02:40]} 12. Bf3 {[%clk 0:02:32]}  Rb8 {[%clk 0:02:37]} 13. Rad1 {[%clk 0:02:29]}  Bd7 {[%clk 0:02:35]} 14. g4 {[%clk 0:02:26]}  Na5 {[%clk 0:02:29]} 15. Qg2 {[%clk 0:02:15]}  Nc4 {[%clk 0:02:28]} 16. Bc1 {[%clk 0:02:15]}  Qb6 {[%clk 0:02:20]} 17. g5 {[%clk 0:02:10]}  Ne8 {[%clk 0:02:19]} 18. Kh1 {[%clk 0:02:09]}  Nxb2 {[%clk 0:02:18]} 19. Bxb2 {[%clk 0:01:56]}  Qxb2 {[%clk 0:02:17]} 20. Nce2 {[%clk 0:01:39]}  e5 {[%clk 0:02:03]} 21. Nf5 {[%clk 0:01:38]}  Bf8 {[%clk 0:01:57]} 22. fxe5 {[%clk 0:01:32]}  dxe5 {[%clk 0:01:55]} 23. Neg3 {[%clk 0:01:30]}  Rbc8 {[%clk 0:01:48]} 24. Rd2 {[%clk 0:01:06]}  Rc6 {[%clk 0:01:46]} 25. Rfd1 {[%clk 0:01:03]}  g6 {[%clk 0:00:57]} 26. Ne3 {[%clk 0:01:00]}  Nd6 {[%clk 0:00:54]} 27. Nd5 {[%clk 0:00:53]}  Kh8 {[%clk 0:00:45]} 28. Nb4 {[%clk 0:00:37]}  Rc3 {[%clk 0:00:40]} 29. Rxd6 {[%clk 0:00:22]}  Bh3 {[%clk 0:00:36]} 30. Rxd8 {[%clk 0:00:07]}  Bxg2+ {[%clk 0:00:34]} 31. Bxg2 {[%clk 0:00:08]}  Kg7 {[%clk 0:00:33]} 32. Nd5 {[%clk 0:00:09]}  Rxc2 {[%clk 0:00:30]} 33. Ne3 {[%clk 0:00:06]}  Rc1 {[%clk 0:00:29]} 34. Rd7 {[%clk 0:00:05]}  Rxd1+ {[%clk 0:00:29]} 35. Rxd1 {[%clk 0:00:05]}  Qxa3 {[%clk 0:00:28]} 36. Ng4 {[%clk 0:00:05]}  Be7 {[%clk 0:00:25]} 37. h4 {[%clk 0:00:04]}  Qxg3 {[%clk 0:00:25]} 38. Nf6 {[%clk 0:00:03]}  Bxf6 {[%clk 0:00:25]} 39. gxf6+ {[%clk 0:00:04]}  Kxf6 {[%clk 0:00:26]} 40. Rf1+ {[%clk 0:00:04]}  Ke7 {[%clk 0:00:26]} 41. Rf3 {[%clk 0:00:05]}  Qxh4+ {[%clk 0:00:26]} 42. Rh3 {[%clk 0:00:05]}  Qe1+ {[%clk 0:00:26]} 43. Kh2 {[%clk 0:00:06]}  h5 {[%clk 0:00:26]} 44. Rd3 {[%clk 0:00:05]}  Qh4+ {[%clk 0:00:26]} 45. Bh3 {[%clk 0:00:04]}  Qf4+ {[%clk 0:00:26]} 0-1


[Site "https://www.chess.com"]

[Event "Titled Tuesday Blitz July 25 Late 2023"]
[White "DampFalcon"]
[Black "Plotkin, Victor"]
[BlackFideId "2606674"]
[WhiteElo "2396"]
[BlackElo "2499"]
[Result "1/2-1/2"]
[Round "9"]
[TimeControl "180+2"]
[Date "2023.07.25"]
[WhiteClock "0:00:07"]
[BlackClock "0:00:19"]
[Board "76"]

1. e4 {[%clk 0:03:00]}  e5 {[%clk 0:03:00]} 2. Nf3 {[%clk 0:02:55]}  Nf6 {[%clk 0:03:00]} 3. Nxe5 {[%clk 0:02:54]}  Nxe4 {[%clk 0:03:00]} 4. Qe2 {[%clk 0:02:52]}  Qe7 {[%clk 0:03:01]} 5. Qxe4 {[%clk 0:02:50]}  d6 {[%clk 0:03:01]} 6. d4 {[%clk 0:02:49]}  dxe5 {[%clk 0:03:02]} 7. Qxe5 {[%clk 0:02:48]}  Qxe5+ {[%clk 0:03:02]} 8. dxe5 {[%clk 0:02:49]}  Bf5 {[%clk 0:03:02]} 9. Bd3 {[%clk 0:02:45]}  Bxd3 {[%clk 0:03:01]} 10. cxd3 {[%clk 0:02:46]}  Nc6 {[%clk 0:03:02]} 11. f4 {[%clk 0:02:45]}  O-O-O {[%clk 0:03:01]} 12. O-O {[%clk 0:02:36]}  Bc5+ {[%clk 0:02:56]} 13. Kh1 {[%clk 0:02:35]}  Nb4 {[%clk 0:02:57]} 14. Nc3 {[%clk 0:02:31]}  Nxd3 {[%clk 0:02:56]} 15. Ne4 {[%clk 0:02:27]}  Bd4 {[%clk 0:02:49]} 16. Rb1 {[%clk 0:02:14]}  f5 {[%clk 0:02:46]} 17. exf6 {[%clk 0:02:01]}  gxf6 {[%clk 0:02:46]} 18. Rd1 {[%clk 0:01:58]}  f5 {[%clk 0:02:34]} 19. Rxd3 {[%clk 0:01:39]}  fxe4 {[%clk 0:02:33]} 20. Rg3 {[%clk 0:01:32]}  Bf2 {[%clk 0:02:19]} 21. Be3 {[%clk 0:01:20]}  Bxg3 {[%clk 0:02:17]} 22. hxg3 {[%clk 0:01:21]}  Rd3 {[%clk 0:02:17]} 23. Re1 {[%clk 0:01:21]}  Rhd8 {[%clk 0:02:17]} 24. Kh2 {[%clk 0:01:20]}  b6 {[%clk 0:02:03]} 25. g4 {[%clk 0:01:17]}  c5 {[%clk 0:02:02]} 26. f5 {[%clk 0:01:16]}  c4 {[%clk 0:01:55]} 27. Kg3 {[%clk 0:01:14]}  Kd7 {[%clk 0:01:52]} 28. Kf4 {[%clk 0:01:14]}  Kc6 {[%clk 0:01:41]} 29. Rh1 {[%clk 0:01:07]}  R8d7 {[%clk 0:01:37]} 30. Rh6+ {[%clk 0:00:50]}  Kd5 {[%clk 0:01:33]} 31. g5 {[%clk 0:00:45]}  b5 {[%clk 0:01:32]} 32. g6 {[%clk 0:00:38]}  hxg6 {[%clk 0:01:32]} 33. Rxg6 {[%clk 0:00:25]}  b4 {[%clk 0:01:25]} 34. Ra6 {[%clk 0:00:18]}  c3 {[%clk 0:01:19]} 35. Ra5+ {[%clk 0:00:15]}  Kc6 {[%clk 0:01:17]} 36. Rc5+ {[%clk 0:00:14]}  Kb7 {[%clk 0:01:15]} 37. Rb5+ {[%clk 0:00:14]}  Ka6 {[%clk 0:01:15]} 38. Rxb4 {[%clk 0:00:15]}  Rd2 {[%clk 0:00:47]} 39. bxc3 {[%clk 0:00:12]}  Rxg2 {[%clk 0:00:44]} 40. Rxe4 {[%clk 0:00:08]}  Rxa2 {[%clk 0:00:42]} 41. f6 {[%clk 0:00:07]}  Ra1 {[%clk 0:00:32]} 42. Kf5 {[%clk 0:00:06]}  Rf1+ {[%clk 0:00:29]} 43. Ke6 {[%clk 0:00:06]}  Rc7 {[%clk 0:00:29]} 44. Ra4+ {[%clk 0:00:03]}  Kb5 {[%clk 0:00:27]} 45. Rf4 {[%clk 0:00:03]}  Rxf4 {[%clk 0:00:23]} 46. Bxf4 {[%clk 0:00:04]}  Rxc3 {[%clk 0:00:21]} 47. f7 {[%clk 0:00:03]}  Rc8 {[%clk 0:00:20]} 48. Bd6 {[%clk 0:00:03]}  Rh8 {[%clk 0:00:19]} 49. f8=Q {[%clk 0:00:02]}  Rxf8 {[%clk 0:00:18]} 50. Bxf8 {[%clk 0:00:03]}  a5 {[%clk 0:00:18]} 51. Be7 {[%clk 0:00:03]}  Kc4 {[%clk 0:00:19]} 52. Ke5 {[%clk 0:00:04]}  a4 {[%clk 0:00:19]} 53. Bd6 {[%clk 0:00:04]}  Kb5 {[%clk 0:00:19]} 54. Kd4 {[%clk 0:00:05]}  Kc6 {[%clk 0:00:19]} 55. Kc3 {[%clk 0:00:06]}  Kxd6 {[%clk 0:00:20]} 56. Kb4 {[%clk 0:00:06]}  a3 {[%clk 0:00:19]} 57. Kxa3 {[%clk 0:00:07]} 1/2-1/2


[Site "https://www.chess.com"]